bitfinex/quotes_ETHUSD_20250806
["timestamp","ask_amount","ask_price","bid_price","bid_amount"]
[1754475081424,3.089,3627.0,3626.8,2.75724652]
[1754475081724,0.4657,3626.9,3626.7,2.89490358]
[1754475081897,0.4657,3626.9,3626.8,2.75725157]
[1754475082100,1.0,3627.0,3626.9,2.75717554]
[1754475082301,3.09,3627.0,3626.9,3.34347554]
[1754475083339,1.0,3627.0,3626.9,3.34347554]
[1754475083698,3.09,3627.0,3626.9,3.34347554]
[1754475087430,3.09,3627.0,3626.9,3.75077554]
[1754475087596,3.09,3627.0,3626.9,6.32412282]
[1754475087797,3.09,3627.0,3626.9,5.91682282]
[1754475089110,1.0,3627.0,3626.9,6.32412282]
[1754475089300,3.089,3627.0,3626.9,6.32412282]
[1754475090004,1.0,3627.0,3626.9,6.32412282]
[1754475091531,1.0,3627.0,3626.9,9.32412282]
[1754475092429,0.001,3627.1,3627.0,5.75709953]
[1754475092430,1e-08,3627.1,3627.0,5.75709953]
[1754475092631,1e-08,3627.1,3627.0,25.89911383]
[1754475092836,1e-08,3627.1,3627.0,26.74561383]
[1754475093033,1e-08,3627.3,3627.2,2.7569475]
[1754475093257,1e-08,3627.3,3627.2,2.92211697]
[1754475093437,0.001,3627.5,3627.2,2.92211697]
[1754475093438,1e-08,3627.5,3627.4,2.7567955]
[1754475093737,1e-08,3627.5,3627.4,25.28795573]
[1754475093936,1e-08,3627.5,3627.4,26.13445573]
[1754475094331,1e-08,3627.5,3627.4,26.27205573]
[1754475094535,1e-08,3627.5,3627.4,3.8304198]
[1754475094749,0.49290001,3627.5,3627.4,2.7567955]
[1754475095718,0.91110001,3627.5,3627.4,2.7567955]
[1754475095942,2.58590001,3627.5,3627.4,2.7567955]
[1754475096254,2.09200001,3627.5,3627.4,2.7567955]
[1754475096603,1e-08,3627.5,3627.4,3.1959955]
[1754475096809,1e-08,3627.5,3627.4,3.79128321]
[1754475097549,0.49290001,3627.5,3627.4,3.35208321]
[1754475098717,1e-08,3627.5,3627.4,3.35208321]
[1754475098940,2.09300001,3627.5,3627.4,3.35208321]
[1754475099141,2.09300001,3627.5,3627.4,3.79128321]
[1754475099336,1e-08,3627.5,3627.4,3.79128321]
[1754475099650,1e-08,3627.5,3627.4,8.07128321]
[1754475101821,0.49290001,3627.5,3627.4,7.63208321]
[1754475103130,1e-08,3627.5,3627.4,8.07128321]
[1754475103455,2.58590001,3627.5,3627.4,7.63208321]
[1754475104659,2.58590001,3627.5,3627.4,7.1743955]
[1754475104962,3.02110001,3627.5,3627.4,7.1743955]
[1754475105329,2.58590001,3627.5,3627.4,7.1743955]
[1754475106037,1e-08,3627.5,3627.4,7.1743955]
[1754475106239,2.58590001,3627.5,3627.4,7.1743955]
[1754475106430,2.58590001,3627.5,3627.4,8.21144321]
[1754475109049,0.49290001,3627.5,3627.4,8.21144321]
[1754475109244,2.58490001,3627.5,3627.4,8.21144321]
[1754475110342,1e-08,3627.5,3627.4,8.21144321]
[1754475110542,1e-08,3627.5,3627.4,8.65064321]
[1754475110935,1e-08,3627.5,3627.4,12.05794321]
[1754475115536,0.39453782,3628.0,3627.8,2.75649153]
[1754475115874,0.39453782,3628.0,3627.9,7.3120647]
[1754475116069,0.39453782,3628.0,3627.9,7.8888647]
[1754475116270,0.001,3628.1,3628.0,5.75633958]
[1754475116573,0.4939,3628.6,3628.3,2.75604469]
[1754475116574,0.001,3628.6,3628.3,2.75604469]
[1754475116738,0.001,3628.7,3628.5,21.48869569]
[1754475116938,0.001,3628.7,3628.6,5.26776388]
[1754475117144,0.001,3628.7,3628.6,5.70696388]
[1754475117564,0.041,3628.9,3628.8,5.75573192]
[1754475118070,0.041,3628.9,3628.8,6.19493192]
[1754475118238,0.5339,3628.9,3628.8,5.89333192]
[1754475118444,0.5339,3628.9,3628.8,8.62199378]
[1754475120551,0.9681,3628.9,3628.8,2.89333192]
[1754475121677,0.5339,3628.9,3628.8,2.89333192]
[1754475123297,0.5339,3628.9,3628.8,7.17333192]
[1754475123691,0.9681,3628.9,3628.8,7.17333192]
[1754475124179,0.9681,3628.9,3628.5,7.03591422]
[1754475124357,0.8843,3628.8,3628.7,2.75580786]
[1754475126488,0.8843,3628.8,3628.6,2.89345788]
[1754475126658,0.041,3628.9,3628.6,2.89345788]
[1754475126859,0.8843,3628.7,3628.6,0.1376]
[1754475127781,0.8843,3628.7,3628.5,4.28]
[1754475127979,0.8843,3628.6,3628.5,4.28]
[1754475128295,1.0219,3628.6,3628.2,2.75617724]
[1754475128584,0.8843,3628.5,3628.2,2.75612949]
[1754475128746,2.093,3628.4,3628.2,2.75612949]
[1754475129146,0.8843,3628.3,3628.2,2.75612949]
[1754475130179,0.4501,3628.3,3628.2,2.75612949]
[1754475130750,0.4501,3628.3,3628.2,1.46350074]
[1754475130751,2.093,3628.3,3628.2,1.46350074]
[1754475131078,2.093,3628.3,3628.2,4.21968838]
[1754475131287,2.093,3628.3,3628.2,3.75878838]
[1754475131652,2.5431,3628.3,3628.2,3.75878838]
[1754475132084,0.001,3628.7,3628.5,2.75590997]
[1754475132261,2.093,3628.6,3628.5,2.75590997]
[1754475132581,0.001,3628.7,3628.6,2.89348381]
[1754475132781,0.001,3628.7,3628.6,3.21678381]
[1754475132984,0.001,3628.7,3628.6,3.76168381]
[1754475134366,0.001,3628.7,3628.6,3.35438381]
[1754475135290,0.001,3628.7,3628.6,3.76168381]
[1754475135606,0.001,3628.7,3628.6,4.78636372]
[1754475136700,0.041,3628.9,3628.8,5.75573192]
[1754475137206,0.041,3628.9,3628.8,6.76153192]
[1754475137572,0.001,3629.1,3629.0,2.75558004]
[1754475137771,0.001,3629.1,3629.0,4.27289124]
[1754475137970,0.001,3629.1,3629.0,5.14109124]
[1754475139306,0.001,3629.1,3629.0,4.73379124]
[1754475140822,0.001,3629.1,3629.0,5.14109124]
[1754475142510,1e-08,3629.1,3629.0,5.14109124]
[1754475143203,1e-08,3629.1,3629.0,4.73379124]
[1754475146181,1e-08,3629.1,3629.0,7.73379124]
[1754475146381,0.001,3629.7,3629.6,2.75512453]
[1754475146707,0.001,3629.7,3629.6,3.62913698]
[1754475147481,0.001,3629.7,3629.6,6.62913698]
[1754475147903,1e-08,3629.8,3629.7,2.75504862]
[1754475148080,1e-08,3629.8,3629.7,2.7825991]
[1754475148281,1e-08,3629.8,3629.7,6.35191048]
[1754475148677,1e-08,3629.8,3629.7,5.94461048]
[1754475149217,1e-08,3629.8,3629.7,5.48371048]
[1754475149218,0.45010001,3629.8,3629.7,5.48371048]
[1754475149405,0.45010001,3629.8,3629.7,2.75504862]
[1754475152412,0.89630001,3629.8,3629.7,2.75504862]
[1754475153084,0.89630001,3629.8,3629.6,2.89272453]
[1754475153085,0.89630001,3629.8,3629.6,2.89269178]
[1754475153404,0.9201,3629.7,3629.4,2.75522876]
[1754475153598,3.0121,3629.6,3629.4,2.75522876]
[1754475153805,2.092,3629.6,3629.5,2.75520044]
[1754475154221,2.092,3629.6,3629.4,2.75525863]
[1754475154525,2.092,3629.6,3629.5,2.75520044]
[1754475155024,2.5659,3629.6,3629.5,2.75520044]
[1754475155334,3.0121,3629.6,3629.5,2.75520044]
[1754475155707,3.0121,3629.6,3629.4,2.75525321]
[1754475155925,2.092,3629.6,3629.5,2.75520044]
[1754475156519,3.0121,3629.6,3629.5,2.75520044]
[1754475157031,3.0121,3629.6,3629.4,2.75524777]
[1754475157227,2.092,3629.6,3629.4,2.75524777]
[1754475157430,0.9201,3629.5,3629.4,2.75524777]
[1754475157801,0.9201,3629.5,3629.4,2.75527635]
[1754475161540,1e-08,3629.8,3629.7,2.75504862]
[1754475161739,2.09100001,3629.8,3629.7,7.50094862]
[1754475162042,1e-08,3629.8,3629.7,3.35854862]
[1754475162240,1e-08,3629.8,3629.7,3.76584862]
[1754475162460,1e-08,3629.8,3629.7,7.90242975]
[1754475164201,1e-08,3629.9,3629.8,5.75497272]
[1754475164397,1e-08,3629.9,3629.8,6.62817272]
[1754475166330,1e-08,3629.9,3629.8,10.90817272]
[1754475166500,1e-08,3629.9,3629.8,12.88662627]
[1754475166921,1e-08,3630.2,3629.9,3.0]
[1754475167233,0.001,3630.8,3630.4,2.7545174]
[1754475167404,0.001,3630.8,3630.4,2.8921174]
[1754475167604,0.001,3630.8,3630.4,3.3580174]
[1754475167801,1e-08,3630.5,3630.4,7.90199056]
[1754475168303,0.001,3630.8,3630.7,2.7542898]
[1754475168502,1e-08,3630.9,3630.8,2.75421394]
[1754475168901,1e-08,3630.9,3630.8,6.62741394]
[1754475169104,0.001,3631.1,3630.8,6.62741394]
[1754475169105,3.31,3631.7,3631.4,2.75375888]
[1754475169313,0.04,3631.9,3631.8,2.75345558]
[1754475169816,0.04,3631.9,3631.8,2.89105558]
[1754475170016,0.5139,3631.9,3631.8,2.89105558]
[1754475170738,0.9796,3631.9,3630.2,2.75459978]
[1754475170941,0.9396,3631.8,3631.4,2.75369424]
[1754475171120,0.9396,3631.7,3631.3,2.75381476]
[1754475171305,0.9396,3631.6,3630.4,3.0]
[1754475171635,0.9396,3631.5,3630.0,2.75482093]
[1754475171821,2.75361019,3631.6,3630.0,2.75482093]
[1754475171822,5.31751707,3631.4,3630.1,0.37095209]
[1754475172026,0.9396,3631.3,3630.1,3.37095209]
[1754475172237,0.9396,3631.2,3630.1,3.37095209]
[1754475172431,0.8889,3631.1,3630.8,2.7541654]
[1754475172630,0.8889,3631.0,3630.7,2.75426299]
[1754475172844,0.8889,3630.9,3630.8,2.75421369]
[1754475173146,0.8889,3630.9,3630.7,2.75426807]
[1754475173337,0.415,3630.9,3630.7,2.75426807]
[1754475173646,0.4739,3630.8,3630.7,2.75426807]
[1754475175453,0.4739,3631.1,3630.7,2.75421884]
[1754475175642,0.415,3631.1,3630.7,2.75421884]
[1754475175822,0.4739,3631.0,3630.7,2.75421884]
[1754475176024,0.4739,3630.9,3630.7,2.75421884]
[1754475176347,2.098,3631.0,3630.8,2.75415683]
[1754475176652,2.5719,3631.0,3630.9,2.75413809]
[1754475177657,2.098,3631.0,3630.9,2.75410954]
[1754475177854,2.098,3631.0,3630.5,2.75443786]
[1754475177855,2.5637,3631.0,3630.5,2.75443786]
[1754475178036,0.4657,3630.9,3630.6,2.75429693]
[1754475178355,0.4739,3630.8,3630.5,2.75443786]
[1754475178534,0.4739,3630.8,3630.7,2.7542898]
[1754475180534,2.098,3631.0,3630.7,2.7542898]
[1754475180730,2.098,3631.0,3630.9,0.1376]
[1754475181334,3.0393,3631.0,3630.9,0.1376]
[1754475181953,2.5871,3631.0,3630.9,2.89173809]
[1754475182250,2.5871,3631.0,3630.9,0.1376]
[1754475182622,2.5871,3631.0,3630.9,2.89173809]
[1754475183122,2.5871,3631.0,3630.9,0.1376]
[1754475183323,0.6891,3631.3,3630.9,2.89173809]
[1754475183520,0.1376,3631.4,3631.0,2.75406224]
[1754475183754,0.1376,3631.4,3631.3,2.75383471]
[1754475183959,2.097,3631.4,3631.3,2.75383471]
[1754475184154,0.001,3631.7,3631.4,2.75375452]
[1754475184341,2.097,3631.6,3631.5,2.75368305]
[1754475184546,0.4901,3631.7,3631.6,2.89120722]
[1754475184861,2.5881,3631.7,3631.6,2.75360722]
[1754475185157,2.5881,3631.7,3631.5,0.1376]
[1754475185355,2.099,3631.7,3631.5,2.89128081]
[1754475185659,0.4891,3631.6,3631.5,2.89128081]
[1754475186158,2.099,3631.7,3631.6,2.75360722]
[1754475186625,2.099,3631.7,3631.5,2.89123883]
[1754475186930,0.4891,3631.6,3631.5,2.89123883]
[1754475187369,2.099,3631.7,3631.6,2.75360722]
[1754475187664,2.099,3631.7,3631.5,2.89126725]
[1754475187839,2.5881,3631.7,3631.5,2.89126725]
[1754475188023,0.4901,3631.7,3631.5,0.1376]
[1754475188228,2.097,3631.6,3631.5,0.1376]
[1754475188431,2.097,3631.6,3631.5,2.89128305]
[1754475189041,0.001,3631.7,3631.6,2.75360722]
[1754475189242,2.098,3631.7,3631.6,2.75360722]
[1754475190058,2.5871,3631.7,3631.5,2.89125518]
[1754475190363,0.4891,3631.6,3631.5,2.89125518]
[1754475190953,0.001,3631.7,3631.6,2.75360722]
[1754475191129,2.5871,3631.7,3631.6,2.75360722]
[1754475192168,0.001,3631.7,3631.6,2.75360722]
[1754475192353,2.097,3631.7,3631.6,2.75360722]
[1754475192539,2.097,3631.7,3631.6,3.68400722]
[1754475192728,2.097,3631.7,3631.6,4.34154228]
[1754475193734,0.001,3631.7,3631.6,4.34154228]
[1754475193933,2.097,3631.7,3631.6,4.34154228]
[1754475194130,2.097,3631.7,3631.6,8.62154228]
[1754475194542,3.0383,3631.7,3631.6,4.28]
[1754475194952,5.7918314,3631.7,3631.6,4.28]
[1754475195167,3.0383,3631.7,3631.6,4.28]
[1754475195659,5.9918314,3631.7,3631.6,4.28]
[1754475196367,3.2383,3631.7,3631.6,4.28]
[1754475196835,5.9918314,3631.7,3631.6,4.28]
[1754475197337,3.2383,3631.7,3631.6,4.28]
[1754475200167,3.2383,3631.7,3631.3,2.75383417]
[1754475200373,0.4891,3631.6,3631.3,2.75383417]
[1754475200694,2.097,3631.5,3631.4,3.19575888]
[1754475200841,0.001,3631.7,3631.6,2.75360722]
[1754475201045,2.097,3631.7,3631.6,2.75360722]
[1754475201897,0.001,3631.7,3631.6,3.68400722]
[1754475202105,2.098,3631.7,3631.6,4.35532217]
[1754475203187,2.098,3631.7,3631.6,3.42492217]
[1754475203396,2.098,3631.7,3631.6,2.75360722]
[1754475204440,2.098,3631.7,3631.6,2.89120722]
[1754475204648,2.098,3631.7,3631.6,3.82160722]
[1754475205558,2.097,3631.7,3631.6,3.82160722]
[1754475205747,2.097,3631.7,3631.6,4.50668217]
[1754475206072,0.001,3631.7,3631.6,8.78668217]
[1754475206278,2.097,3631.7,3631.6,7.85628217]
[1754475207184,2.097,3631.7,3631.6,8.78668217]
[1754475207383,0.001,3631.7,3631.6,8.78668217]
[1754475207617,2.096,3631.7,3631.6,8.78668217]
[1754475209049,2.096,3631.7,3631.6,7.85628217]
[1754475209248,2.5851,3631.7,3631.6,4.28]
[1754475209478,3.0373,3631.7,3631.6,4.28]
[1754475210385,3.2373,3631.7,3631.6,4.28]
[1754475211980,3.2373,3631.7,3631.3,0.1376]
[1754475212180,0.9307,3631.6,3631.3,0.1376]
[1754475212717,0.9307,3631.5,3631.0,2.75406224]
[1754475212881,0.9307,3631.4,3631.0,2.89166224]
[1754475213081,1.1307,3631.3,3631.0,0.1376]
[1754475213325,2.095,3631.2,3631.0,0.1376]
[1754475213632,3.0257,3631.2,3631.0,0.1376]
[1754475213797,2.5645,3631.2,3631.0,2.75405585]
[1754475213999,0.4612,3631.1,3631.0,2.75405585]
[1754475214411,0.4612,3631.1,3630.9,7.17171188]
[1754475214922,0.4612,3631.1,3630.9,4.4176]
[1754475215213,0.4612,3631.0,3630.9,4.4176]
[1754475216014,0.4612,3631.0,3630.9,7.17173809]
[1754475216196,2.5562,3631.2,3630.9,7.17173809]
[1754475216728,2.5562,3631.2,3631.0,0.002]
[1754475217037,0.2,3631.3,3631.2,2.75391055]
[1754475217212,2.295,3631.3,3631.1,2.75397775]
[1754475217743,2.295,3631.3,3631.0,0.002]
[1754475217888,0.4612,3631.2,3631.0,0.002]
[1754475218432,2.295,3631.3,3631.0,0.002]
[1754475218433,4.17648639,3631.1,3631.0,0.002]
[1754475218599,4.31408639,3631.1,3631.0,0.002]
[1754475218928,6.3042898,3630.7,3630.6,0.002]
[1754475219122,26.99687681,3630.7,3630.6,0.002]
[1754475219342,28.06937681,3630.7,3630.6,0.002]
[1754475219826,28.20697681,3630.7,3630.6,0.002]
[1754475220696,9.6113898,3630.7,3630.6,0.002]
[1754475225720,9.6695898,3630.7,3630.6,0.002]
[1754475227841,9.6195898,3630.7,3630.6,0.002]
[1754475230548,2.095,3630.7,3630.6,0.8968]
[1754475230746,3.308,3630.8,3630.7,2.7542898]
[1754475230912,5.404,3630.8,3630.7,3.39504197]
[1754475231108,5.404,3630.8,3630.7,4.28984197]
[1754475238014,3.308,3630.8,3630.7,4.28984197]
[1754475238318,5.402,3630.8,3630.7,4.28984197]
[1754475240428,5.402,3630.8,3630.7,1.53555217]
[1754475240639,5.402,3630.8,3630.6,2.89390707]
[1754475240966,5.402,3630.8,3630.7,2.7542898]
[1754475241326,5.602,3630.8,3630.7,2.7542898]
[1754475241642,5.602,3630.8,3630.7,3.6679898]
[1754475242935,5.402,3630.8,3630.7,3.6679898]
[1754475243136,24.00262139,3630.8,3630.6,0.1396]
[1754475243336,0.9482,3630.7,3630.6,0.002]
[1754475243542,1.1482,3630.7,3630.6,0.002]
[1754475243853,0.6968,3630.7,3630.6,0.002]
[1754475244439,0.2,3630.7,3630.6,2.75636566]
[1754475244750,2.293,3630.7,3630.6,4.3129221]
[1754475245461,2.093,3630.7,3630.6,4.3129221]
[1754475245637,2.093,3630.7,3630.6,0.9157]
[1754475246451,2.094,3630.7,3630.6,3.67004996]
[1754475246651,3.308,3630.8,3630.7,2.7542898]
[1754475246953,5.402,3630.8,3630.7,3.6679898]
[1754475247857,5.402,3630.8,3630.6,0.1396]
[1754475247858,5.402,3630.8,3630.6,2.89393723]
[1754475248661,2.094,3630.8,3630.6,2.89393723]
[1754475248862,0.2,3631.0,3630.8,2.75420005]
[1754475249065,2.093,3630.9,3630.7,3.66796309]
[1754475250167,2.093,3630.9,3630.6,3.55054863]
[1754475250355,2.093,3630.9,3630.6,2.89393446]
[1754475250533,2.5898,3630.9,3630.6,2.89393446]
[1754475250733,2.093,3630.9,3630.6,2.89393446]
[1754475250998,2.093,3630.9,3630.6,0.1396]
[1754475250999,0.4968,3630.8,3630.6,0.1396]
[1754475251168,2.093,3630.7,3630.6,0.1396]
[1754475251545,2.093,3630.7,3630.6,3.80766566]
[1754475251751,2.093,3630.7,3630.6,4.89227776]
[1754475252044,0.001,3631.2,3630.9,2.75407965]
[1754475252250,2.093,3631.1,3630.9,2.75407965]
[1754475252461,2.093,3631.1,3630.9,3.66777965]
[1754475252975,2.093,3631.1,3630.9,3.66781455]
[1754475253867,2.093,3631.1,3630.9,2.75411455]
[1754475255455,2.093,3631.1,3630.9,3.66781455]
[1754475255782,2.093,3631.1,3631.0,2.75406224]
[1754475255990,2.093,3631.1,3630.9,3.66780446]
[1754475256186,2.093,3631.1,3631.0,2.75406224]
[1754475256555,2.093,3631.1,3630.9,3.66781503]
[1754475256750,2.093,3631.1,3630.9,0.9137]
[1754475257055,2.093,3631.1,3631.0,2.75406224]
[1754475258584,0.001,3631.2,3631.1,2.75398639]
[1754475258887,2.093,3631.2,3631.1,2.75398639]
[1754475259051,0.001,3631.2,3631.1,2.75398639]
[1754475259388,2.092,3631.2,3631.1,2.75398639]
[1754475260486,2.092,3631.2,3631.0,3.66774899]
[1754475260690,2.092,3631.2,3631.1,2.75398639]
[1754475261256,2.092,3631.2,3631.0,3.66773732]
[1754475261987,2.092,3631.2,3631.1,2.75398639]
[1754475262280,2.092,3631.2,3631.1,3.66768639]
[1754475262885,2.092,3631.2,3631.1,3.21238639]
[1754475263303,2.092,3631.2,3631.1,0.4584]
[1754475263594,2.092,3631.2,3631.1,3.21238639]
[1754475263894,2.092,3631.2,3631.1,2.75398639]
[1754475265966,0.001,3631.2,3631.1,3.83792881]
[1754475266277,2.091,3631.2,3631.1,4.88922881]
[1754475267290,0.001,3631.2,3631.1,4.88922881]
[1754475267470,2.091,3631.2,3631.1,4.88922881]
[1754475270002,2.091,3631.2,3631.1,3.97552881]
[1754475271508,2.091,3631.2,3631.1,4.90622881]
[1754475273394,2.091,3631.2,3631.1,4.76862881]
[1754475273598,2.091,3631.2,3631.1,4.90622881]
[1754475275621,0.001,3631.2,3631.1,9.18622881]
[1754475275782,2.091,3631.2,3631.1,9.18622881]
[1754475277399,0.001,3631.2,3631.1,9.18622881]
[1754475280065,0.001,3631.2,3631.1,8.71632881]
[1754475280572,0.4798,3631.2,3631.1,7.17158639]
[1754475280771,0.9513,3631.2,3631.1,7.17158639]
[1754475283286,0.001,3631.2,3631.1,7.17158639]
[1754475283820,0.001,3631.2,3631.1,8.10228639]
[1754475283975,2.09,3631.2,3631.1,8.10228639]
[1754475284284,2.09,3631.2,3631.1,9.18792881]
[1754475284481,2.09,3631.2,3631.1,8.25722881]
[1754475286403,2.09,3631.2,3631.1,7.17158639]
[1754475286617,2.5688,3631.2,3631.1,7.17158639]
[1754475286824,3.0403,3631.2,3631.1,4.4176]
[1754475287029,3.0403,3631.2,3631.1,7.17158639]
[1754475287623,3.0403,3631.2,3631.1,4.4176]
[1754475288030,3.0403,3631.2,3631.1,7.17158639]
[1754475288228,2.5688,3631.2,3631.1,7.17158639]
[1754475288432,3.0403,3631.2,3631.1,4.4176]
[1754475289224,3.0403,3631.2,3631.1,7.17158639]
[1754475289429,2.5688,3631.2,3631.1,7.17158639]
[1754475290435,2.09,3631.2,3631.1,7.63238639]
[1754475291330,2.5688,3631.2,3631.1,7.17158639]
[1754475291713,3.0403,3631.2,3631.1,7.17158639]
[1754475291919,3.0403,3631.2,3631.1,2.89158639]
[1754475292632,3.0403,3631.2,3631.1,0.1376]
[1754475292818,3.0403,3631.2,3631.0,4.28]
[1754475293131,0.4788,3631.1,3631.0,7.03406199]
[1754475293567,2.09,3631.2,3631.1,2.75398639]
[1754475293843,2.5688,3631.2,3631.1,2.75398639]
[1754475295145,2.09,3631.2,3631.1,2.75398639]
[1754475295302,2.09,3631.2,3631.1,3.82228639]
[1754475295503,2.09,3631.2,3631.1,2.89158639]
[1754475296032,2.5688,3631.2,3631.1,2.89158639]
[1754475298157,2.09,3631.2,3631.1,2.89158639]
[1754475298330,2.09,3631.2,3631.1,3.82228639]
[1754475299148,2.09,3631.2,3631.1,4.88664382]
[1754475300255,0.001,3631.2,3631.1,4.88664382]
[1754475300412,0.001,3631.2,3631.1,9.16664382]
[1754475300413,2.09,3631.2,3631.1,9.16664382]
[1754475301517,0.001,3631.2,3631.1,9.16664382]
[1754475304286,0.001,3631.2,3631.1,8.69674382]
[1754475304592,0.001,3631.2,3631.1,9.19634382]
[1754475308452,0.001,3631.2,3631.1,8.23594382]
[1754475308789,0.4601,3631.2,3631.1,8.23594382]
[1754475308988,0.001,3631.2,3631.1,8.23594382]
[1754475310675,0.001,3631.2,3631.1,9.05624382]
[1754475310849,0.001,3631.2,3631.1,9.19384382]
[1754475313198,1e-08,3631.7,3631.5,2.75368305]
[1754475313500,1e-08,3631.7,3631.6,2.78114329]
[1754475313801,1e-08,3631.7,3631.6,3.87664329]
[1754475313995,1e-08,3631.7,3631.6,3.37704329]
[1754475314196,1e-08,3631.7,3631.6,3.87664329]
[1754475314499,1e-08,3631.7,3631.6,4.99641649]
[1754475314910,1e-08,3631.7,3631.6,4.49681649]
[1754475315487,1e-08,3631.7,3631.6,4.60711449]
[1754475315685,1e-08,3631.7,3631.6,4.49681649]
[1754475315884,1e-08,3631.7,3631.6,4.03851649]
[1754475316211,0.45910001,3631.7,3631.6,4.03851649]
[1754475316509,1e-08,3631.7,3631.6,4.03851649]
[1754475317316,1e-08,3631.7,3631.6,4.99641649]
[1754475317498,1e-08,3631.7,3631.6,7.99641649]
[1754475319218,1e-08,3631.8,3631.7,5.7535314]
[1754475319416,1e-08,3631.8,3631.7,8.29532619]
[1754475320499,1e-08,3632.0,3631.9,5.75337977]
[1754475320694,1e-08,3632.3,3632.1,2.75322816]
[1754475320893,1e-08,3632.3,3632.2,5.89075235]
[1754475321094,1e-08,3632.3,3632.2,8.93765235]
[1754475321383,1e-08,3632.3,3632.2,11.66631421]
[1754475321785,1e-08,3632.3,3632.2,12.21631421]
[1754475322890,1e-08,3632.3,3632.2,12.42317237]
[1754475323825,1e-08,3632.3,3632.2,12.67267237]
[1754475324324,0.75799083,3633.3,3633.2,2.75239458]
[1754475324620,0.4591,3634.5,3633.8,2.75194011]
[1754475324795,3.7671,3634.2,3633.8,2.75194011]
[1754475324997,3.7671,3634.2,3633.8,2.88954011]
[1754475325409,2.089,3634.7,3633.8,3.84744011]
[1754475325612,0.4591,3634.3,3633.8,2.88954011]
[1754475325816,0.4591,3634.2,3633.8,2.88954011]
[1754475327133,0.9317,3633.9,3633.8,2.88954011]
[1754475327339,0.9317,3633.9,3633.8,0.1376]
[1754475327724,0.9317,3633.9,3633.4,2.75219607]
[1754475327918,0.04,3633.9,3633.6,0.1376]
[1754475328252,0.8917,3633.8,3633.6,0.1376]
[1754475328415,0.04,3633.9,3633.6,0.1376]
[1754475328618,0.8917,3633.7,3633.6,0.1376]
[1754475329344,0.8917,3633.7,3633.6,2.88969158]
[1754475329758,0.8917,3633.7,3633.6,0.1376]
[1754475330614,0.8917,3633.7,3633.6,2.88969158]
[1754475331919,0.8917,3633.7,3633.6,0.1376]
[1754475332252,0.8917,3633.7,3632.8,7.03267496]
[1754475332253,0.8917,3633.7,3633.4,0.1376]
[1754475332413,0.8966,3633.6,3633.4,0.1376]
[1754475332614,2.75216733,3633.5,3632.9,2.75256537]
[1754475332854,0.8966,3633.4,3633.1,0.1376]
[1754475333258,0.8966,3633.3,3633.1,0.1376]
[1754475333418,0.1376,3633.6,3633.1,0.1376]
[1754475333764,0.8966,3633.2,3633.1,2.89007034]
[1754475333916,2.09,3633.4,3633.1,0.86426833]
[1754475334113,2.09,3633.4,3633.3,2.75231882]
[1754475334316,2.09,3633.4,3633.3,2.88991882]
[1754475334548,2.5528,3633.4,3633.3,2.88991882]
[1754475335049,2.9866,3633.4,3632.9,2.75260648]
[1754475335249,2.9866,3633.4,3632.5,2.75291074]
[1754475335250,2.09,3633.4,3633.2,0.1376]
[1754475335442,0.8966,3633.3,3633.2,0.1376]
[1754475336818,0.8966,3633.3,3632.1,0.827063]
[1754475337025,2.75240985,3633.2,3632.9,0.1376]
[1754475337346,4.97984413,3633.4,3632.9,0.1376]
[1754475337347,0.8966,3633.3,3632.9,0.1376]
[1754475337532,0.2,3633.3,3632.9,0.1376]
[1754475337732,0.8966,3633.2,3632.9,0.1376]
[1754475337933,0.8966,3633.1,3632.9,0.1376]
[1754475338132,4.97987625,3633.4,3632.9,0.1376]
[1754475338335,0.8966,3633.0,3632.9,0.1376]
[1754475339557,3.6491461,3633.0,3632.4,2.75295522]
[1754475339725,0.8966,3632.9,3632.5,0.1376]
[1754475339924,4.84271122,3632.8,3632.5,0.1376]
[1754475340123,0.8966,3632.7,3632.5,0.1376]
[1754475340658,0.8966,3632.6,3632.3,0.1376]
[1754475340871,0.8966,3632.6,3631.4,2.75373072]
[1754475341077,0.8966,3632.5,3632.2,0.1376]
[1754475341259,0.4628,3632.5,3632.2,2.89070824]
[1754475341462,2.091,3632.4,3632.3,2.75306221]
[1754475341650,2.091,3632.4,3632.3,2.75307656]
[1754475341855,2.091,3632.4,3632.3,3.68617656]
[1754475342061,0.2,3632.6,3632.5,2.75292498]
[1754475342248,2.291,3632.6,3632.5,2.75292498]
[1754475342461,2.091,3632.6,3632.5,2.75292498]
[1754475344778,0.4628,3633.1,3632.7,2.75276032]
[1754475344941,2.5538,3633.0,3632.7,2.75276032]
[1754475345143,2.5538,3633.0,3632.6,2.75283653]
[1754475345144,2.091,3632.9,3632.6,2.75283653]
[1754475345342,2.091,3632.9,3632.8,2.75262675]
[1754475345537,2.091,3632.9,3632.8,2.89022675]
[1754475346358,2.5538,3632.9,3632.8,2.89022675]
[1754475348484,2.091,3632.9,3632.8,0.1376]
[1754475348692,2.091,3632.9,3632.8,2.89029764]
[1754475349054,0.4628,3633.2,3632.9,2.75261539]
[1754475349254,2.5528,3633.1,3632.9,2.75261539]
[1754475349562,2.5528,3633.1,3633.0,2.7525461]
[1754475349773,2.09,3633.1,3633.0,2.7525461]
[1754475349953,0.6004,3633.4,3632.8,0.1376]
[1754475350152,2.09,3633.3,3633.2,2.75239458]
[1754475350350,0.4628,3633.6,3633.3,2.75229531]
[1754475350575,2.5538,3633.5,3633.3,2.75229531]
[1754475350775,2.091,3633.5,3633.3,2.75229531]
[1754475351079,0.4628,3633.4,3633.3,2.75229531]
[1754475351880,0.3386,3633.7,3633.3,2.75229531]
[1754475352188,0.001,3633.7,3633.6,2.75209158]
[1754475352391,0.001,3633.7,3633.6,3.82279158]
[1754475352392,2.092,3633.7,3633.6,3.82279158]